fUSD/lending_fUSD_20240501
["ID","MTS","AMOUNT","RATE_DAILY","PERIOD"]
[325231969,1714600239825,-178.12326356,0.00011779,2]
[325231971,1714600239838,-4513.56562886,0.00011779,2]
[325231973,1714600239851,-309.95428075,0.00011779,2]
[325231976,1714600239865,-306.95158875,0.00011779,2]
[325231978,1714600239877,-185.69743876,0.00011779,2]
[325231981,1714600239891,-4728.17005222,0.00011779,2]
[325231983,1714600239904,-3018.84273905,0.00011779,2]
[325231985,1714600239917,-392.21201561,0.00011779,2]
[325231988,1714600239931,-175.38289139,0.00011779,2]
[325231990,1714600239945,-277.09289079,0.00011779,2]
[325231992,1714600239961,-161.31340791,0.00011779,2]
[325231995,1714600239974,-305.6060761,0.00011779,2]
[325231997,1714600239988,-346.41830008,0.00011779,2]
[325231999,1714600240002,-155.12450973,0.00011779,2]
[325232002,1714600240014,-181.17838626,0.00011779,2]
[325232004,1714600240028,-155.0,0.00011779,2]
[325232007,1714600240042,-304.90902579,0.00011779,2]
[325232009,1714600240055,-155.36775701,0.00011779,2]
[325232012,1714600240069,-155.0,0.00011779,2]
[325232014,1714600240083,-201.36658946,0.00011779,2]
[325232016,1714600240095,-786.99155585,0.00011779,2]
[325232019,1714600240109,-1513.01279747,0.00011779,2]
[325232021,1714600240123,-316.65546178,0.00011779,2]
[325232024,1714600240135,-684.46532829,0.00011779,2]
[325232026,1714600240148,-157.11066999,0.00011779,2]
[325232029,1714600240162,-781.35828446,0.00011779,2]
[325232031,1714600240177,-968.0068632,0.00011779,2]
[325232033,1714600240192,-490.56341243,0.00011779,2]
[325232036,1714600240207,-168.80224381,0.00011779,2]
[325232038,1714600240221,-711.0273802,0.0001178,2]
[325232041,1714600240236,-21435.49996831,0.00011781,2]
[325232043,1714600240250,-4459.4654,0.00011783,2]
[325232045,1714600240264,-4419.3666,0.00011783,2]
[325232048,1714600240278,-4584.3685979,0.00011787,2]
[325232050,1714600240292,-207.21030234,0.00011798,2]
[325232052,1714600240307,-155.0,0.00011798,2]
[325232055,1714600240320,-198.06902745,0.00011798,2]
[325232057,1714600240335,-289.83775221,0.00011798,2]
[325232059,1714600240349,-1722.95125171,0.00011798,2]
[325232063,1714600240363,-155.25921222,0.00011798,2]
[325232065,1714600240376,-305.60617377,0.00011798,2]
[325232068,1714600240390,-156.22891115,0.00011798,2]
[325232071,1714600240405,-171.39576258,0.00011798,2]
[325232073,1714600240418,-160.71760703,0.00011798,2]
[325232075,1714600240431,-158.49372764,0.00011798,2]
[325232078,1714600240443,-155.11864282,0.00011798,2]
[325232080,1714600240456,-207.90792551,0.00011798,2]
[325232082,1714600240468,-163.88340812,0.00011798,2]
[325232085,1714600240481,-157.37702182,0.00011798,2]
[325232087,1714600240494,-246.02191133,0.00011798,2]
[325232090,1714600240506,-157.84899631,0.00011798,2]
[325232092,1714600240518,-1351.89634566,0.00011798,2]
[325232094,1714600240531,-211.35577984,0.00011798,2]
[325232096,1714600240542,-214.00741216,0.00011798,2]
[325232099,1714600240555,-306.98839776,0.00011798,2]
[325232101,1714600240568,-155.71433885,0.00011798,2]
[325232104,1714600240580,-155.0,0.00011798,2]
[325232106,1714600240593,-233.03801742,0.00011798,2]
[325232108,1714600240606,-308.71879785,0.00011798,2]
[325232111,1714600240619,-157.13236333,0.00011798,2]
[325232113,1714600240631,-208.58192749,0.00011798,2]
[325232116,1714600240644,-313.40476678,0.00011798,2]
[325232118,1714600240656,-155.80892173,0.00011798,2]
[325232120,1714600240669,-213.71186045,0.00011798,2]
[325232123,1714600240683,-205.7728251,0.00011798,2]
[325232125,1714600240696,-590.72620326,0.00011798,2]
[325232127,1714600240710,-155.0,0.00011798,2]
[325232129,1714600240720,-262.16181551,0.00011798,2]
[325232131,1714600240730,-216.84655625,0.00011798,2]
[325232133,1714600240739,-201.27469792,0.00011798,2]
[325232136,1714600240749,-274.66448477,0.00011798,2]
[325232137,1714600240758,-161.78234219,0.00011798,2]
[325232139,1714600240768,-194.90310928,0.00011798,2]
[325232142,1714600240777,-200.81648913,0.00011798,2]
[325232143,1714600240787,-710.33944675,0.00011798,2]
[325232146,1714600240797,-194.01529019,0.00011798,2]
[325232147,1714600240806,-155.79455194,0.00011798,2]
[325232150,1714600240816,-259.32312542,0.00011798,2]
[325232152,1714600240825,-199.25463457,0.00011798,2]
[325232195,1714600241184,-266.1273035,0.00011798,2]
[325232199,1714600241244,-172.47240175,0.00011798,2]
[325232203,1714600241277,-204.28996042,0.00011798,2]
[325232205,1714600241290,-175.54408362,0.00011798,2]
[325232207,1714600241299,-185.84594523,0.00011798,2]
[325232210,1714600241309,-2628.47800925,0.00011798,2]
[325232211,1714600241318,-34028.92307061,0.00011799,2]
[325232214,1714600241328,-1159.691968,0.000118,2]
[325232216,1714600241337,-437.49944981,0.000118,2]
[325232218,1714600241347,-17584.46236373,0.000118,2]
[325232219,1714600241357,-3877.57734044,0.00012,2]
[325232222,1714600241366,-600.0,0.00012,2]
[325232223,1714600241375,-167.17,0.00012033,2]
[325232225,1714600241386,-40044.6051,0.000123,2]
[325232227,1714600241395,-70944.1694,0.000123,2]
[325232229,1714600241404,-1712.39109405,0.00012329,2]
[325232231,1714600241414,-12622.09297705,0.000124,2]
[325232234,1714600241424,-500.0,0.000125,4]
[325232235,1714600241434,-1100.0,0.000126,4]
[325232237,1714600241442,-150.0,0.00012616,2]
[325232239,1714600241452,-400.0,0.00012625,2]
[325232241,1714600241462,-227.72388813,0.00012632,2]
[325232244,1714600241472,-1500.0,0.00012669,2]
[325232245,1714600241482,-150.0,0.00012697,2]
[325232247,1714600241492,-150.0,0.00012698,2]
[325232249,1714600241502,-150.0,0.000127,2]
[325232251,1714600241511,-150.0,0.000127,2]
[325232253,1714600241521,-1600.0,0.000127,4]
[325232255,1714600241529,-150.0,0.00012705,2]
[325232257,1714600241538,-150.0,0.00012705,2]
[325232259,1714600241547,-150.0,0.00012707,2]
[325232261,1714600241556,-150.0,0.00012708,2]
[325232264,1714600241566,-150.0,0.00012709,2]
[325232266,1714600241575,-150.0,0.00012711,2]
[325232268,1714600241584,-150.0,0.00012719,2]
[325232269,1714600241593,-1135.98177328,0.0001272,2]
[325232272,1714600241602,-1130.76902014,0.0001272,2]
[325232274,1714600241612,-150.0,0.00012726,2]
[325232276,1714600241621,-150.0,0.00012728,2]
[325232278,1714600241630,-150.0,0.00012731,2]
[325232280,1714600241639,-150.0,0.00012732,2]
[325232281,1714600241648,-150.0,0.00012737,2]
[325232284,1714600241657,-150.0,0.00012738,2]
[325232285,1714600241665,-150.0,0.00012743,2]
[325232287,1714600241674,-150.0,0.00012748,2]
[325232290,1714600241685,-150.0,0.00012751,2]
[325232291,1714600241694,-150.0,0.00012757,2]
[325232294,1714600241705,-150.0,0.00012762,2]
[325232296,1714600241715,-150.0,0.00012763,2]
[325232298,1714600241724,-150.0,0.00012773,2]
[325232300,1714600241733,-150.0,0.00012774,2]
[325232302,1714600241743,-150.0,0.00012775,2]
[325232303,1714600241752,-150.0,0.00012776,2]
[325232304,1714600241761,-150.0,0.00012776,2]
[325232305,1714600241770,-300.0,0.00012778,2]
[325232306,1714600241779,-391.74266496,0.0001278,2]
[325232307,1714600241789,-152.44857828,0.0001278,2]
[325232308,1714600241799,-192.19193026,0.0001278,2]
[325232309,1714600241808,-48862.3932498,0.0001278,2]
[325232310,1714600241817,-150.0,0.00012782,2]
[325232311,1714600241827,-150.0,0.00012783,2]
[325232312,1714600241836,-150.0,0.00012783,2]
[325232313,1714600241846,-150.0,0.00012789,2]
[325232314,1714600241855,-259.47761844,0.00012792,2]
[325232315,1714600241865,-150.0,0.00012797,2]
[325232317,1714600241874,-150.0,0.00012798,2]
[325232319,1714600241883,-150.0,0.00012798,2]
[325232321,1714600241892,-150.0,0.00012799,2]
[325232323,1714600241901,-2200.0,0.000128,4]
[325232325,1714600241910,-150.0,0.00012803,2]
[325232327,1714600241920,-150.0,0.00012803,2]
[325232329,1714600241929,-150.0,0.00012805,2]
[325232331,1714600241938,-150.0,0.00012807,2]
[325232333,1714600241948,-150.0,0.00012807,2]
[325232335,1714600241958,-150.0,0.00012807,2]
[325232337,1714600241970,-150.0,0.00012808,2]
[325232339,1714600241980,-150.0,0.00012809,2]
[325232341,1714600241990,-150.0,0.00012812,2]
[325232342,1714600241999,-150.0,0.00012813,2]
[325232345,1714600242008,-150.0,0.00012813,2]
[325232347,1714600242018,-150.0,0.00012814,2]
[325232349,1714600242028,-150.0,0.00012815,2]
[325232351,1714600242039,-300.0,0.00012815,2]
[325232352,1714600242050,-150.0,0.00012815,2]
[325232354,1714600242060,-150.0,0.0001282,2]
[325232356,1714600242069,-150.0,0.00012822,2]
[325232358,1714600242078,-150.0,0.00012824,2]
[325232360,1714600242088,-150.0,0.0001283,2]
[325232362,1714600242097,-150.0,0.00012836,2]
[325232364,1714600242105,-150.0,0.00012836,2]
[325232366,1714600242114,-300.0,0.00012837,2]
[325232368,1714600242124,-150.0,0.00012838,2]
[325232370,1714600242133,-150.0,0.00012838,2]
[325232372,1714600242142,-1500.0,0.00012839,2]
[325232374,1714600242152,-150.0,0.00012839,2]
[325232376,1714600242161,-150.0,0.00012844,2]
[325232378,1714600242170,-150.0,0.00012848,2]
[325232380,1714600242180,-783.36795,0.0001285,2]
[325232382,1714600242189,-150.0,0.00012858,2]
[325232384,1714600242199,-150.0,0.00012859,2]
[325232386,1714600242208,-150.0,0.0001286,2]
[325232388,1714600242217,-150.0,0.0001286,2]
[325232390,1714600242227,-150.0,0.00012862,2]
[325232392,1714600242236,-150.0,0.00012864,2]
[325232394,1714600242246,-150.0,0.00012865,2]
[325232396,1714600242255,-150.0,0.00012867,2]
[325232398,1714600242264,-150.0,0.00012869,2]
[325232400,1714600242272,-500.34835212,0.0001287,2]
[325232402,1714600242281,-150.0,0.00012872,2]
[325232404,1714600242291,-53250.7198,0.0001288,2]
[325232406,1714600242300,-12807.86319907,0.0001288,2]
[325232408,1714600242309,-245000.0,0.0001288,2]
[325232410,1714600242318,-854.9439,0.0001288,2]
[325232412,1714600242327,-563.6279,0.0001288,2]
[325232414,1714600242336,-1000.0,0.0001288,2]
[325232416,1714600242345,-784611.3111,0.0001288,2]
[325232418,1714600242353,-6787.6748,0.0001288,2]
[325232419,1714600242361,-253.620327,0.0001288,2]
[325232421,1714600242370,-151.0,0.0001288,2]
[325232423,1714600242379,-151.0,0.0001288,2]
[325232425,1714600242388,-275.330101,0.0001288,2]
[325232427,1714600242398,-151.0,0.0001288,2]
[325232429,1714600242406,-151.0,0.0001288,2]
[325232431,1714600242415,-151.0,0.0001288,2]
[325232433,1714600242424,-151.0,0.0001288,2]
[325232435,1714600242434,-151.0,0.0001288,2]
[325232437,1714600242443,-151.0,0.0001288,2]
[325232439,1714600242452,-151.0,0.0001288,2]
[325232441,1714600242461,-225.724298,0.0001288,2]
[325232443,1714600242471,-151.0,0.0001288,2]
[325232445,1714600242480,-151.0,0.0001288,2]
[325232447,1714600242490,-151.0,0.0001288,2]
[325232449,1714600242499,-151.0,0.0001288,2]
[325232451,1714600242508,-151.0,0.0001288,2]
[325232453,1714600242517,-151.0,0.0001288,2]
[325232455,1714600242526,-151.0,0.0001288,2]
[325232457,1714600242535,-151.0,0.0001288,2]
[325232459,1714600242545,-151.0,0.0001288,2]
[325232461,1714600242554,-151.0,0.0001288,2]
[325232463,1714600242563,-151.0,0.0001288,2]
[325232465,1714600242573,-151.0,0.0001288,2]
[325232467,1714600242582,-151.0,0.0001288,2]
[325232469,1714600242592,-151.0,0.0001288,2]
[325232472,1714600242602,-151.0,0.0001288,2]
[325232474,1714600242612,-151.0,0.0001288,2]
[325232476,1714600242622,-151.0,0.0001288,2]
[325232477,1714600242632,-151.0,0.0001288,2]
[325232479,1714600242641,-255.482516,0.0001288,2]
[325232482,1714600242650,-153.854454,0.0001288,2]
[325232484,1714600242659,-151.0,0.0001288,2]
[325232485,1714600242668,-151.0,0.0001288,2]
[325232488,1714600242680,-1042.77644673,0.0001288,2]
[325232489,1714600242689,-206.02178956,0.0001288,2]
[325232491,1714600242697,-151.0,0.0001288,2]
[325232493,1714600242706,-151.0,0.0001288,2]
[325232495,1714600242715,-151.0,0.0001288,2]
[325232497,1714600242724,-151.0,0.0001288,2]
[325232499,1714600242733,-151.0,0.0001288,2]
[325232501,1714600242742,-151.0,0.0001288,2]
[325232503,1714600242751,-2648.98725203,0.0001288,2]
[325232505,1714600242760,-199.99843924,0.0001288,2]
[325232507,1714600242769,-274.051025,0.0001288,2]
[325232509,1714600242778,-274.051025,0.0001288,2]
[325232511,1714600242787,-151.0,0.0001288,2]
[325232513,1714600242796,-151.0,0.0001288,2]
[325232515,1714600242805,-274.051025,0.0001288,2]
[325232517,1714600242815,-274.051025,0.0001288,2]
[325232519,1714600242824,-151.0,0.0001288,2]
[325232521,1714600242834,-151.0,0.0001288,2]
[325232523,1714600242844,-151.0,0.0001288,2]
[325232525,1714600242853,-151.0,0.0001288,2]
[325232527,1714600242862,-151.0,0.0001288,2]
[325232529,1714600242871,-1073.256063,0.0001288,2]
[325232531,1714600242881,-150.0,0.00012884,2]
[325232533,1714600242890,-150.0,0.00012887,2]
[325232535,1714600242899,-1490.0,0.00012887,2]
[325232537,1714600242908,-150.0,0.0001289,2]
[325232539,1714600242917,-150.0,0.00012891,2]
[325232541,1714600242927,-150.0,0.00012893,2]
[325232543,1714600242936,-1029.20801255,0.00012895,2]
[325232545,1714600242947,-150.0,0.00012896,2]
[325232547,1714600242957,-150.0,0.000129,2]
[325232549,1714600242966,-192.19193026,0.000129,2]
[325232551,1714600242976,-7869.43084047,0.000129,2]
[325232553,1714600242986,-2700.0,0.000129,4]
[325232555,1714600242996,-150.0,0.00012902,2]
[325232557,1714600243005,-150.0,0.00012906,2]
[325232559,1714600243014,-150.0,0.00012915,2]
[325232561,1714600243024,-150.0,0.00012917,2]
[325232563,1714600243035,-150.0,0.00012919,2]
[325232565,1714600243045,-150.0,0.0001292,2]
[325232567,1714600243054,-150.0,0.00012923,2]
[325232569,1714600243064,-150.0,0.00012924,2]
[325232571,1714600243074,-1000.0,0.00012927,2]
[325232573,1714600243083,-2635.11,0.00012927,2]
[325232575,1714600243092,-150.0,0.0001293,2]
[325232577,1714600243102,-150.0,0.00012933,2]
[325232579,1714600243111,-150.0,0.00012937,2]
[325232581,1714600243120,-150.0,0.00012937,2]
[325232583,1714600243129,-150.0,0.00012938,2]
[325232586,1714600243139,-150.0,0.00012941,2]
[325232588,1714600243148,-150.0,0.00012943,2]
[325232590,1714600243157,-150.0,0.00012946,2]
[325232592,1714600243166,-150.0,0.00012949,2]
[325232594,1714600243175,-150.0,0.00012949,2]
[325232596,1714600243186,-150.0,0.0001295,2]
[325232598,1714600243195,-150.0,0.00012955,2]
[325232600,1714600243204,-150.0,0.00012959,2]
[325232602,1714600243213,-150.0,0.00012961,2]
[325232604,1714600243224,-150.0,0.00012967,2]
[325232606,1714600243233,-150.0,0.00012968,2]
[325232608,1714600243243,-150.0,0.0001297,2]
[325232611,1714600243252,-500.34835212,0.0001297,2]
[325232614,1714600243261,-236.4281505,0.00012978,2]
[325232616,1714600243270,-2935.27362657,0.00012978,2]
[325232618,1714600243280,-1034.6412428,0.00012979,3]
[325232620,1714600243289,-2000.0,0.00012979,2]
[325232622,1714600243299,-870435.41629057,0.0001298,2]
[325232624,1714600243308,-17201.67950343,0.0001298,2]
[325232626,1714600243317,-408.68643751,0.0001298,2]
[325232628,1714600243326,-151.0,0.0001298,2]
[325232630,1714600243335,-151.0,0.0001298,2]
[325232634,1714600243345,-151.0,0.0001298,2]
[325232638,1714600243354,-151.0,0.0001298,2]
[325232642,1714600243363,-151.0,0.0001298,2]
[325232646,1714600243373,-151.0,0.0001298,2]
[325232649,1714600243382,-151.0,0.0001298,2]
[325232652,1714600243392,-151.0,0.0001298,2]
[325232654,1714600243401,-151.0,0.0001298,2]
[325232656,1714600243410,-151.0,0.0001298,2]
[325232658,1714600243419,-151.0,0.0001298,2]
[325232660,1714600243428,-151.0,0.0001298,2]
[325232662,1714600243437,-151.0,0.0001298,2]
[325232664,1714600243446,-151.0,0.0001298,2]
[325232666,1714600243456,-151.0,0.0001298,2]
[325232668,1714600243465,-151.0,0.0001298,2]
[325232670,1714600243474,-151.0,0.0001298,2]
[325232672,1714600243483,-151.0,0.0001298,2]
[325232674,1714600243492,-151.0,0.0001298,2]
[325232676,1714600243501,-151.0,0.0001298,2]
[325232678,1714600243510,-151.0,0.0001298,2]
[325232680,1714600243519,-151.0,0.0001298,2]
[325232682,1714600243528,-151.0,0.0001298,2]
[325232684,1714600243537,-151.0,0.0001298,2]
[325232686,1714600243547,-151.0,0.0001298,2]
[325232687,1714600243556,-151.0,0.0001298,2]
[325232690,1714600243566,-155.75671,0.0001298,2]
[325232692,1714600243576,-151.0,0.0001298,2]
[325232694,1714600243585,-248.697651,0.0001298,2]
[325232696,1714600243595,-151.0,0.0001298,2]
[325232698,1714600243604,-151.0,0.0001298,2]
[325232700,1714600243614,-274.051025,0.0001298,2]
[325232702,1714600243623,-151.0,0.0001298,2]
[325232704,1714600243633,-274.051025,0.0001298,2]
[325232706,1714600243642,-216.090129,0.0001298,2]
[325232708,1714600243652,-151.0,0.0001298,2]
[325232710,1714600243662,-151.0,0.00012986,2]
[325232712,1714600243671,-151.0,0.00012986,2]
[325232714,1714600243682,-151.0,0.00012986,2]
[325232716,1714600243691,-151.0,0.00012986,2]
[325232718,1714600243703,-151.0,0.00012986,2]
[325232720,1714600243713,-264.690444,0.00012986,2]
[325232722,1714600243723,-151.0,0.00012986,2]
[325232724,1714600243732,-151.0,0.00012986,2]
[325232726,1714600243742,-151.0,0.00012986,2]
[325232728,1714600243751,-151.0,0.00012986,2]
[325232730,1714600243761,-151.0,0.00012986,2]
[325232732,1714600243770,-151.0,0.00012986,2]
[325232734,1714600243780,-151.0,0.00012986,2]
[325232736,1714600243789,-151.0,0.00012986,2]
[325232738,1714600243799,-151.0,0.00012986,2]
[325232740,1714600243808,-151.0,0.00012986,2]
[325232742,1714600243817,-151.0,0.00012986,2]
[325232744,1714600243826,-151.0,0.00012986,2]
[325232746,1714600243835,-151.0,0.00012986,2]
[325232748,1714600243845,-151.0,0.00012986,2]
[325232750,1714600243854,-151.0,0.00012986,2]
[325232752,1714600243863,-151.0,0.00012986,2]
[325232754,1714600243873,-151.0,0.00012986,2]
[325232756,1714600243882,-151.0,0.00012986,2]
[325232758,1714600243891,-151.0,0.00012986,2]
[325232760,1714600243900,-274.051025,0.00012986,2]
[325232762,1714600243910,-181.002982,0.00012986,2]
[325232764,1714600243919,-274.051025,0.00012986,2]
[325232766,1714600243929,-151.0,0.00012986,2]
[325232768,1714600243939,-179573.0,0.00012986,2]
[325232770,1714600243952,-32027.0,0.00012986,2]
[325232772,1714600243961,-500.34835212,0.00012988,2]
[325232774,1714600243971,-4432.15922547,0.0001299,2]
[325232776,1714600243981,-3310.20851458,0.00012991,2]
[325232778,1714600243991,-265.47853017,0.00012996,2]
[325232780,1714600244000,-2216.45947127,0.00012996,2]
[325232782,1714600244009,-316.45502724,0.00012996,2]
[325232784,1714600244018,-404.6914497,0.00012996,2]
[325232786,1714600244027,-409.12808028,0.00012997,2]
[325232788,1714600244037,-324690.37905459,0.00012998,3]
[325232790,1714600244048,-151.0,0.00012998,2]
[325232792,1714600244057,-151.0,0.00012998,2]
[325232794,1714600244067,-151.0,0.00012998,2]
[325232796,1714600244076,-151.0,0.00012998,2]
[325232798,1714600244085,-151.0,0.00012998,2]
[325232800,1714600244094,-151.0,0.00012998,2]
[325232802,1714600244104,-151.0,0.00012998,2]
[325232804,1714600244114,-151.0,0.00012998,2]
[325232806,1714600244123,-151.0,0.00012998,2]
[325232808,1714600244132,-151.0,0.00012998,2]
[325232810,1714600244141,-151.42274,0.00012998,2]
[325232812,1714600244151,-151.0,0.00012998,2]
[325232814,1714600244160,-151.0,0.00012998,2]
[325232816,1714600244169,-151.0,0.00012998,2]
[325232818,1714600244179,-151.0,0.00012998,2]
[325232820,1714600244188,-151.0,0.00012998,2]
[325232822,1714600244198,-244.726374,0.00012998,2]
[325232824,1714600244207,-157.050206,0.00012998,3]
[325232826,1714600244216,-157.050206,0.00012998,3]
[325232828,1714600244226,-157.050206,0.00012998,3]
[325232829,1714600244235,-157.050206,0.00012998,3]
[325232830,1714600244245,-157.050206,0.00012998,3]
[325232831,1714600244254,-157.050206,0.00012998,3]
[325232833,1714600244263,-151.0,0.00012998,2]
[325232835,1714600244272,-151.0,0.00012998,2]
[325232859,1714600244447,-151.0,0.00012998,2]
[325232861,1714600244463,-151.0,0.00012998,2]
[325232863,1714600244473,-151.0,0.00012998,2]
[325232865,1714600244482,-274.051025,0.00012998,2]
[325232867,1714600244491,-274.051025,0.00012998,2]
[325232870,1714600244501,-208.026604,0.00012998,2]
[325232872,1714600244510,-1203.99652219,0.00012999,3]
[325232874,1714600244519,-1034.6412428,0.00012999,3]
[325232876,1714600244529,-1034.6412428,0.00012999,3]
[325232877,1714600244539,-88148.65188517,0.00013,2]
[325232880,1714600244557,-393.13811276,0.00013,2]
[325232920,1714600244917,-4512.5884,0.00013,2]
[325232922,1714600244929,-4936.4916975,0.00013,2]
[325232924,1714600244940,-2350.75626598,0.00013,2]
[325232952,1714600245191,-1073.256063,0.0001288,2]
[325232954,1714600245201,-1073.256063,0.0001298,2]
[325232956,1714600245211,-796.48223432,0.00012986,2]
[325232958,1714600245222,-276.77382868,0.00012986,2]
[325232960,1714600245231,-193.64475582,0.00013,2]
[325232962,1714600245243,-358.59593088,0.00013,2]
[325232964,1714600245254,-299.66814268,0.00013,2]
[325232971,1714600245304,-1073.256063,0.00012998,2]
[325232973,1714600245316,-5114.143937,0.00013,2]
[325232976,1714600245327,-1067.5,0.00013,2]
[325233092,1714600246419,-1073.256063,0.0001288,2]
[325233094,1714600246433,-6320.62601139,0.00013,2]
[325233150,1714600246916,-513.18500005,0.00013,2]
[325233152,1714600246927,-409.987,0.00013,2]
[325233155,1714600246954,-112899.12655906,0.00013,2]
[325233216,1714600247529,-1000.0,0.00011581,2]
[325233218,1714600247539,-479.5325,0.00012879,2]
[325233219,1714600247551,-992.34140627,0.00012879,2]
[325233220,1714600247560,-1073.256063,0.0001288,2]
[325233221,1714600247569,-482.52653073,0.0001298,2]
[325233232,1714600247745,-590.72953227,0.0001298,2]
[325233234,1714600247755,-499.62346773,0.00012986,2]
[325233634,1714600442523,150.0,0.00010993,2]
[325233635,1714601318798,-430.2399565,0.00011479,2]
[325233636,1714601318822,-5344.2271,0.0001148,2]
[325233637,1714601318847,-1242.67581309,0.0001158,2]
[325233638,1714601318872,-25982.85713041,0.00011581,2]
[325233639,1714601340562,-439.00548952,0.0001158,2]
[325233640,1714601340597,-22860.99451048,0.00011581,2]
[325233641,1714601376857,-16900.0,0.00011581,2]
[325233653,1714601431729,-858.85640371,0.00011581,2]
[325233654,1714601431741,-844.00971584,0.00011581,2]
[325233655,1714601431753,-32553.28223956,0.00011581,2]
[325233656,1714601431762,-520.0,0.00011722,2]
[325233657,1714601431771,-250.0,0.00011736,2]
[325233658,1714601431781,-23870.0,0.0001174,2]
[325233659,1714601431790,-360.0,0.00011751,2]
[325233660,1714601431800,-200.0,0.00011768,2]
[325233661,1714601431809,-250.0,0.00011768,2]
[325233662,1714601431818,-169.65,0.00011817,2]
[325233663,1714601431828,-480.0,0.00011817,2]
[325233664,1714601431837,-224.99,0.0001185,2]
[325233665,1714601431846,-299.99,0.0001185,2]
[325233666,1714601431855,-165.97,0.00011862,2]
[325233667,1714601431864,-165.97,0.00011922,2]
[325233668,1714601431873,-200.0,0.0001194,2]
[325233669,1714601431882,-3028.1,0.0001194,2]
[325233670,1714601431891,-307.0,0.00011981,2]
[325233671,1714601431901,-169.65,0.00012022,2]
[325233672,1714601431910,-698.28,0.00012055,2]
[325233673,1714601431919,-150.99,0.00012055,2]
[325233674,1714601431928,-150.99,0.00012055,2]
[325233675,1714601431937,-200.91,0.00012055,2]
[325233676,1714601431946,-167.78,0.00012065,2]
[325233677,1714601431955,-1002.20182295,0.00012147,2]
[325233678,1714601431964,-1316.84,0.00012184,2]
[325233679,1714601431973,-365.84,0.00012184,2]
[325233680,1714601431983,-169.65,0.00012227,2]
[325233681,1714601431992,-1138.3136395,0.00012348,2]
[325233682,1714601432002,-169.65,0.00012433,2]
[325233683,1714601432011,-12622.09297705,0.00012725,2]
[325233684,1714601432020,-1122.54400771,0.00012726,2]
[325233685,1714601432028,-1045.93851858,0.00012726,2]
[325233686,1714601432037,-150.0,0.00012731,2]
[325233687,1714601432047,-150.0,0.00012736,2]
[325233688,1714601432056,-150.0,0.0001274,2]
[325233689,1714601432065,-150.0,0.0001274,2]
[325233690,1714601432074,-150.0,0.00012741,2]
[325233691,1714601432084,-150.0,0.00012774,2]
[325233692,1714601432093,-150.0,0.000128,2]
[325233693,1714601432102,-150.0,0.0001281,2]
[325233694,1714601432111,-150.0,0.00012816,2]
[325233695,1714601432120,-150.0,0.00012816,2]
[325233696,1714601432129,-150.0,0.00012818,2]
[325233697,1714601432139,-150.0,0.00012827,2]
[325233698,1714601432148,-150.0,0.00012834,2]
[325233699,1714601432157,-150.0,0.00012843,2]
[325233700,1714601432168,-150.0,0.00012843,2]
[325233701,1714601432177,-150.0,0.00012848,2]
[325233702,1714601432186,-150.0,0.00012849,2]
[325233703,1714601432195,-150.0,0.0001285,2]
[325233704,1714601432204,-150.0,0.00012866,2]
[325233705,1714601432213,-150.0,0.00012871,2]
[325233706,1714601432222,-150.0,0.00012872,2]
[325233707,1714601432231,-150.0,0.00012875,2]
[325233708,1714601432241,-363.46064478,0.00012878,2]